fUST/lending_fUST_20240604
["ID","MTS","AMOUNT","RATE_DAILY","PERIOD"]
[328483352,1717433358225,-151.0,0.000244,2]
[328483353,1717433358244,-205.82824,0.000244,2]
[328483354,1717433358270,-205.82824,0.000244,2]
[328483355,1717433358291,-151.0,0.000244,2]
[328483356,1717433358311,-368.02935,0.000244,2]
[328483357,1717433358331,-368.02935,0.000244,2]
[328483358,1717433358352,-368.02935,0.000244,2]
[328483359,1717433358373,-368.02935,0.000244,2]
[328483360,1717433358394,-694.990868,0.000244,2]
[328483361,1717433358414,-694.990868,0.000244,2]
[328483362,1717433358434,-151.0,0.000244,2]
[328483363,1717433358455,-270.105906,0.000244,2]
[328483364,1717433358476,-151.0,0.000244,2]
[328483365,1717433358496,-151.0,0.000244,2]
[328483366,1717433358519,-151.0,0.000244,2]
[328483367,1717433358540,-151.0,0.000244,2]
[328483368,1717433358561,-151.0,0.000244,2]
[328483369,1717433358581,-156.000653,0.000244,2]
[328483370,1717433358602,-2742.567125,0.000244,2]
[328483371,1717433358622,-2742.567125,0.000244,2]
[328483372,1717433358642,-2742.567125,0.000244,2]
[328483373,1717433358662,-2742.567125,0.000244,2]
[328483374,1717433358682,-236.025422,0.000244,2]
[328483375,1717433358702,-151.0,0.000244,2]
[328483376,1717433358722,-197.789993,0.000244,2]
[328483377,1717433358742,-900.429453,0.000244,2]
[328483378,1717433358762,-900.429453,0.000244,2]
[328483379,1717433358783,-900.429453,0.000244,2]
[328483380,1717433358805,-900.429453,0.000244,2]
[328483381,1717433358832,-158.678541,0.000244,2]
[328483382,1717433358851,-158.678541,0.000244,2]
[328483383,1717433358873,-460.978941,0.000244,2]
[328483384,1717433358895,-460.978949,0.000244,2]
[328483385,1717433358916,-166.666666,0.00024482,2]
[328483386,1717433358936,-200.0,0.00024658,15]
[328483387,1717433358956,-315.975192,0.00024658,2]
[328483388,1717433358977,-315.975192,0.00024658,2]
[328483389,1717433359000,-315.975192,0.00024658,2]
[328483390,1717433359022,-315.975192,0.00024658,2]
[328483391,1717433359043,-315.975192,0.00024658,2]
[328483392,1717433359064,-315.975192,0.00024658,2]
[328483393,1717433359086,-315.975192,0.00024658,2]
[328483394,1717433359108,-315.975192,0.00024658,2]
[328483395,1717433359128,-315.975192,0.00024658,2]
[328483396,1717433359148,-315.975192,0.00024658,2]
[328483397,1717433359168,-315.975192,0.00024658,2]
[328483398,1717433359188,-315.975192,0.00024658,2]
[328483399,1717433359208,-315.975192,0.00024658,2]
[328483400,1717433359228,-315.975192,0.00024658,2]
[328483401,1717433359249,-315.975192,0.00024658,2]
[328483402,1717433359271,-315.975192,0.00024658,2]
[328483403,1717433359291,-315.975192,0.00024658,2]
[328483404,1717433359311,-315.975192,0.00024658,2]
[328483405,1717433359331,-315.975192,0.00024658,2]
[328483406,1717433359351,-315.975202,0.00024658,2]
[328483407,1717433359371,-151.0,0.00024658,2]
[328483408,1717433359391,-151.0,0.00024658,2]
[328483409,1717433359410,-155.149692,0.00024658,2]
[328483410,1717433359429,-205.82824,0.00024658,2]
[328483411,1717433359449,-205.82824,0.00024658,2]
[328483412,1717433359468,-151.0,0.00024658,2]
[328483413,1717433359489,-151.0,0.00024658,2]
[328483414,1717433359511,-151.0,0.00024658,2]
[328483415,1717433359531,-2742.567125,0.00024658,2]
[328483416,1717433359551,-2742.567123,0.00024658,2]
[328483417,1717433359573,-900.429453,0.00024658,2]
[328483418,1717433359594,-900.429447,0.00024658,2]
[328483419,1717433359613,-5600.0,0.000247,9]
[328483420,1717433359633,-151.0,0.000247,2]
[328483421,1717433359654,-265.270841,0.000247,2]
[328483422,1717433359677,-151.0,0.000247,2]
[328483423,1717433359698,-236.795859,0.000247,2]
[328483424,1717433359721,-151.0,0.000247,2]
[328483425,1717433359741,-172.395525,0.000247,2]
[328483426,1717433359764,-142.25132862,0.000247,2]
[328483427,1717433359796,-30.14419638,0.000247,2]
[328483428,1717433359820,-446.75929,0.000247,2]
[328483429,1717433359855,-446.75929,0.000247,2]
[328483430,1717433359876,-151.0,0.000247,2]
[328483431,1717433359896,-151.0,0.000247,2]
[328483432,1717433359917,-205.82824,0.000247,2]
[328483433,1717433359938,-205.82824,0.000247,2]
[328483434,1717433359959,-242.274903,0.000247,2]
[328483435,1717433359979,-368.02935,0.000247,2]
[328483436,1717433359999,-368.02935,0.000247,2]
[328483437,1717433360020,-694.990868,0.000247,2]
[328483438,1717433360041,-368.02935,0.00024753,2]
[328483439,1717433360061,-368.02935,0.00024753,2]
[328483440,1717433360081,-694.990868,0.00024753,2]
[328483441,1717433360100,-4485.699999,0.00025,2]
[328483442,1717433360119,-12267.64510538,0.00025,2]
[328483443,1717433360139,-151.0,0.00025,2]
[328483444,1717433360159,-158.473275,0.00025,2]
[328483445,1717433360179,-172.395525,0.00025,2]
[328483446,1717433360200,-172.395525,0.00025,2]
[328483447,1717433360219,-446.75929,0.00025,2]
[328483448,1717433360240,-446.75929,0.00025,2]
[328483449,1717433360262,-151.0,0.00025,2]
[328483450,1717433360282,-180.564873,0.00025,2]
[328483451,1717433360303,-205.82824,0.00025,2]
[328483452,1717433360463,-205.828242,0.00025,2]
[328483453,1717433360489,-368.02935,0.00025,2]
[328483454,1717433360512,-368.0293486,0.00025,2]
[328483455,1717433360532,-694.990859,0.00025,2]
[328483456,1717433360552,-628.91052787,0.00025145,2]
[328483457,1717433360571,-164.6274192,0.000258,10]
[328483458,1717433360592,-154.56985954,0.00025898,2]
[328483459,1717433360611,-762.0201281,0.00025999,2]
[328483460,1717433360630,-166.666666,0.00026,2]
[328483461,1717433360858,301.98,0.00024648,3]
[328483462,1717433360894,603.96,0.00026018,3]
[328483463,1717433360949,8117.00989321,0.00019999,2]
[328483464,1717433361503,347.495434,0.0002,2]
[328483465,1717433362467,347.495434,0.0002,2]
[328483466,1717433362787,347.495434,0.0002,2]
[328483467,1717433363189,347.495434,0.0002,2]
[328483468,1717433363321,151.0,0.0002,2]
[328483469,1717433363528,347.495434,0.0002,2]
[328483470,1717433363690,151.0,0.0002,2]
[328483471,1717433363879,347.495434,0.0002,2]
[328483472,1717433364020,151.0,0.0002,2]
[328483473,1717433364190,347.495434,0.0002136,2]
[328483474,1717433364343,151.0,0.0002,2]
[328483475,1717433364490,347.495434,0.0002136,2]
[328483476,1717433364651,157.757473,0.0002,2]
[328483477,1717433364813,347.495434,0.00021918,2]
[328483478,1717433365161,347.495434,0.000244,2]
[328483479,1717433365479,347.495434,0.0002,2]
[328483480,1717433365790,347.495434,0.0002,2]
[328483481,1717433366110,347.495434,0.0002,2]
[328483482,1717433366430,347.495434,0.0002,2]
[328483483,1717433366766,347.495434,0.0002,2]
[328483484,1717433367100,347.495434,0.0002,2]
[328483485,1717433367430,347.495434,0.0002136,2]
[328483486,1717433367766,347.495434,0.0002136,2]
[328483487,1717433369186,347.495434,0.00021918,2]
[328483488,1717433369716,347.495434,0.000244,2]
[328483489,1717433375519,178.703716,0.00023288,2]
[328483490,1717433375852,178.703716,0.00023288,2]
[328483491,1717433376930,166.666666,0.00026,2]
[328483492,1717433379333,178.703716,0.00023288,2]
[328483493,1717433382734,178.703716,0.00023288,2]
[328483494,1717433384676,178.703716,0.00023288,2]
[328483495,1717433384981,178.703716,0.00023288,2]
[328483496,1717433385348,178.703716,0.00023288,2]
[328483497,1717433386055,178.703716,0.00023288,2]
[328483498,1717433386889,178.703716,0.00023288,2]
[328483499,1717433387013,3700.2816548,0.0002556,2]
[328483500,1717433387598,178.703716,0.000244,2]
[328483501,1717433387934,178.703716,0.00023288,2]
[328483502,1717433388254,178.703716,0.00023288,2]
[328483503,1717433388563,178.703716,0.00023288,2]
[328483504,1717433388907,178.703716,0.00023288,2]
[328483505,1717433389209,178.703716,0.00023288,2]
[328483506,1717433389427,3987.57363517,0.000244,2]
[328483507,1717433391100,178.703716,0.00023288,2]
[328483508,1717433391496,178.703716,0.00023288,2]
[328483509,1717433391900,178.703716,0.00023288,2]
[328483510,1717433392196,178.703716,0.00023288,2]
[328483511,1717433392506,178.703721,0.000244,2]
[328483516,1717433397020,151.0,0.0002,2]
[328483517,1717433397349,151.0,0.0002,2]
[328483518,1717433397377,762.0201281,0.00025,2]
[328483519,1717433397678,151.0,0.0002,2]
[328483520,1717433398020,151.0,0.0002,2]
[328483521,1717433405429,3987.57363517,0.000244,2]
[328483522,1717433413368,584.89707047,0.00025,2]
[328483523,1717433423426,3994.78986162,0.000244,2]
[328483524,1717433429922,300.0,0.00028,120]
[328483634,1717433432711,-620.44552639,0.00026403,2]
[328483635,1717433432720,-151.0,0.00026403,2]
[328483636,1717433432729,-3000.0,0.000265,2]
[328483637,1717433432738,-3000.0,0.0002651,2]
[328483638,1717433432748,-151.0,0.0002652,2]
[328483639,1717433432757,-172.395525,0.0002652,2]
[328483640,1717433432766,-172.395525,0.0002652,2]
[328483641,1717433432775,-602.31342361,0.0002652,2]
[328483675,1717433437850,-2397.68657639,0.0002652,2]
[328483676,1717433437860,-3000.0,0.0002653,2]
[328483677,1717433437870,-160.49026021,0.00026531,2]
[328483678,1717433437879,-3000.0,0.0002654,2]
[328483679,1717433437890,-3000.0,0.0002655,2]
[328483680,1717433437899,-3000.0,0.0002656,2]
[328483681,1717433437908,-5637.292279,0.0002657,2]
[328483682,1717433437917,-204.985722,0.00026637,2]
[328483683,1717433437930,-7278.0176624,0.000268,2]
[328483693,1717433443032,-212.27,0.000267,3]
[328483694,1717433443041,-212.27,0.000267,3]
[328483695,1717433443051,-212.27,0.000267,3]
[328483696,1717433443061,-212.27,0.000267,3]
[328483697,1717433443070,-212.27,0.000267,3]
[328483698,1717433443079,-212.27,0.000267,3]
[328483699,1717433443089,-212.27,0.000267,3]
[328483700,1717433443099,-212.27,0.000267,3]
[328483701,1717433443108,-212.27,0.000267,3]
[328483702,1717433443118,-212.27,0.000267,3]
[328483703,1717433443127,-212.27,0.000267,3]
[328483704,1717433443136,-212.27,0.000267,3]
[328483705,1717433443145,-212.27,0.000267,3]
[328483706,1717433443154,-212.27,0.000267,3]
[328483707,1717433443164,-5050.07887103,0.000268,2]
[328483708,1717433443172,-172.395525,0.000268,2]
[328483709,1717433443182,-172.395525,0.000268,2]
[328483710,1717433443191,-750.0,0.00026849,2]
[328483711,1717433443200,-3303.47062245,0.00026893,30]
[328483712,1717433443209,-151.0,0.00026893,2]
[328483713,1717433443219,-172.395525,0.00026893,2]
[328483714,1717433443228,-172.395525,0.00026893,2]
[328483715,1717433443237,-3303.47062245,0.00026904,30]
[328483716,1717433443246,-3303.47062245,0.00026911,30]
[328483717,1717433443256,-3303.47062245,0.00026959,30]
[328483718,1717433443265,-172.395525,0.00026959,2]
[328483719,1717433443274,-172.39552,0.00026959,2]
[328483720,1717433443283,-151.0,0.00026985,2]
[328483721,1717433443292,-3303.47062245,0.00026985,30]
[328483722,1717433443301,-3303.47062245,0.00026987,30]
[328483723,1717433443310,-500.0,0.00026989,2]
[328483724,1717433443319,-347.63330513,0.00026989,2]
[328483725,1717433443328,-150.99,0.0002699,3]
[328483726,1717433443338,-452.99,0.0002699,3]
[328483727,1717433443348,-10569.17,0.0002699,3]
[328483728,1717433443357,-9935.86,0.0002699,3]
[328483729,1717433443366,-8279.88,0.0002699,3]
[328483730,1717433443375,-3303.47062245,0.00026993,30]
[328483731,1717433443385,-25939.59702381,0.00027,2]
[328483745,1717433446893,415.0,0.00028,120]
[328483747,1717433464235,944.85794937,0.00015,2]
[328483748,1717433479493,218.64352297,0.00024859,2]
[328483750,1717433487031,7936.37127437,9.999e-05,2]
[328483751,1717433571598,1316.04256424,9.999e-05,2]
[328483763,1717433582322,2639.9956011,9.999e-05,2]
[328483766,1717433610685,156.98418007,0.00015,2]
[328483768,1717433628253,317.15969073,9.999e-05,2]
[328483769,1717433642067,1138.74722317,0.0001,2]
[328483813,1717434341162,-1419.03826686,0.00018972,2]
[328483814,1717434425136,-176.34915193,0.00018897,2]
[328483815,1717434426126,-2119.09372413,0.00018896,2]
[328483816,1717434426149,-10300.33722927,0.00018897,2]
[328483817,1717434426173,-1981.65143947,0.00018897,2]
[328483818,1717434426195,-3347.58828999,0.00018898,2]
[328483819,1717434426216,-3463.04995891,0.00018899,2]
[328483820,1717434432095,-2588.560889,0.00018899,2]
[328483821,1717434436102,-154.56985954,0.000188,2]
[328483822,1717434436122,-17.71526485,0.00018899,2]
[328483823,1717434442108,-13703.54438533,0.00018899,2]
[328483824,1717434442130,-224.06481125,0.000189,2]
[328483825,1717434442150,-162.90768691,0.00019,2]
[328483826,1717434442176,-350.92,0.0001999,3]
[328483827,1717434442198,-175.46,0.0001999,3]
[328483828,1717434442219,-2048.47323133,0.00019998,2]
[328483829,1717434442242,-1655.1454563,0.00019998,2]
[328483830,1717434442262,-9579.4310291,0.00019999,2]
[328483831,1717434442285,-500.0,0.00019999,2]
[328483832,1717434442306,-500.0,0.00019999,2]
[328483833,1717434442326,-416.89271101,0.00019999,2]
[328483834,1717434442346,-461.8019537,0.0002,2]
[328483835,1717434442367,-224.93840949,0.0002,2]
[328483836,1717434442388,-53260.34566985,0.0002,2]
[328483837,1717434443105,-59464.96884888,0.0002,2]
[328483838,1717434443128,-12889.42327222,0.0002,2]
[328483839,1717434443150,-675.56384628,0.00020546,2]
[328483840,1717434443177,-701.84,0.0002136,3]
[328483841,1717434443198,-350.92,0.0002136,3]
[328483842,1717434443220,-165.0342093,0.00022143,2]
[328483843,1717434443243,-224.06481125,0.000239,2]
[328483844,1717434443265,-3000.0,0.00024092,2]
[328483845,1717434443286,-500.0,0.00024199,2]
[328483846,1717434443306,-500.0,0.00024199,2]
[328483847,1717434443327,-500.0,0.00024199,2]
[328483848,1717434443346,-197.13148774,0.00024199,2]
[328483849,1717434443368,-500.0,0.00024199,2]
[328483850,1717434443390,-501.51791016,0.00024199,2]
[328483851,1717434443410,-500.0,0.00024199,2]
[328483852,1717434443431,-492.60189128,0.00024199,2]
[328483853,1717434443452,-500.0,0.00024199,2]
[328483854,1717434443473,-496.16922466,0.00024199,2]
[328483855,1717434443494,-500.0,0.00024199,2]
[328483856,1717434443680,-308.10965101,0.00024199,2]
[328483857,1717434443702,-14213.0797175,0.000242,2]
[328483858,1717434443725,-11930.69579645,0.0002533,30]
[328483859,1717434443747,-166.666666,0.00026,2]
[328483860,1717434443770,-2944.082596,0.000265,2]
[328483861,1717434443789,-300.0,0.00026682,2]
[328483862,1717434443809,-1029.62538655,0.00026687,2]
[328483863,1717434443830,-1000.0,0.00026694,2]
[328483864,1717434443850,-300.0,0.00026725,2]
[328483865,1717434443871,-300.0,0.00026784,2]
[328483866,1717434443891,-301.34798036,0.00026799,2]
[328483867,1717434443912,-1000.0,0.00026838,2]
[328483868,1717434443932,-750.0,0.00026849,2]
[328483869,1717434443955,-193.33,0.000269,3]
[328483870,1717434443977,-193.33,0.000269,3]
[328483871,1717434443999,-193.33,0.000269,3]
[328483872,1717434444020,-193.33,0.000269,3]
[328483873,1717434444041,-193.33,0.000269,3]
[328483874,1717434444062,-193.33,0.000269,3]
[328483875,1717434444084,-193.33,0.000269,3]
[328483876,1717434444106,-193.33,0.000269,3]
[328483877,1717434444129,-193.33,0.000269,3]
[328483878,1717434444150,-193.33,0.000269,3]
[328483879,1717434444175,-193.33,0.000269,3]
[328483880,1717434444198,-193.33,0.000269,3]
[328483881,1717434444219,-193.33,0.000269,3]
[328483882,1717434444242,-193.33,0.000269,3]
[328483883,1717434444264,-193.33,0.000269,3]
[328483884,1717434444286,-193.33,0.000269,3]
[328483885,1717434444308,-193.33,0.000269,3]
[328483886,1717434444335,-193.33,0.000269,3]
[328483887,1717434444356,-193.33,0.000269,3]
[328483888,1717434444380,-193.33,0.000269,3]
[328483889,1717434444402,-160.25575119,0.00026992,2]
[328483890,1717434444423,-4060.40297619,0.00027,2]
[328483891,1717434444446,-155.01686895,0.00027,30]
[328483892,1717434444466,-270.0,0.00027,2]
[328483893,1717434444488,-162.12618878,0.0002704,2]
[328483894,1717434444511,-162.12618878,0.00027304,2]
[328483895,1717434444533,-151.0,0.00027351,7]
[328483896,1717434444553,-153.0,0.0002737,2]
[328483897,1717434444573,-157.1132247,0.0002737,2]
[328483898,1717434444593,-153.12327169,0.00027377,2]
[328483899,1717434444613,-386.71545082,0.00027395,2]
[328483900,1717434444633,-944.24164961,0.00027395,2]
[328483901,1717434444655,-275.3142072,0.00027395,2]
[328483902,1717434444674,-8516.3423528,0.00027395,2]
[328483903,1717434444694,-685.82755124,0.00027395,2]
[328483904,1717434444716,-1314.19096862,0.00027395,2]
[328483905,1717434444735,-1522.39984083,0.00027395,2]
[328483906,1717434444763,-192.27157145,0.00027395,2]
[328483907,1717434444782,-316.5799385,0.00027395,2]
[328483908,1717434444802,-322.557,0.00027395,2]
[328483909,1717434444827,-687.29472346,0.00027397,7]
[328483910,1717434444847,-151.0,0.00027397,2]
[328483911,1717434444871,-151.0,0.00027397,2]
[328483912,1717434444896,-151.0,0.00027397,2]
[328483913,1717434444916,-151.0,0.00027397,2]
[328483914,1717434444936,-151.0,0.00027397,2]
[328483915,1717434444958,-151.0,0.00027397,2]
[328483916,1717434444979,-151.0,0.00027397,2]
[328483917,1717434445000,-151.0,0.00027397,2]
[328483918,1717434445020,-198.691375,0.00027397,2]
[328483919,1717434445040,-151.0,0.00027397,2]
[328483920,1717434445064,-151.710281,0.00027397,2]
[328483921,1717434445085,-630.693455,0.00027397,2]
[328483922,1717434445106,-630.693455,0.00027397,2]
[328483923,1717434445127,-630.693455,0.00027397,2]
[328483924,1717434445151,-630.693455,0.00027397,2]
[328483925,1717434445174,-630.693455,0.00027397,2]
[328483926,1717434445197,-630.693455,0.00027397,2]
[328483927,1717434445219,-630.693455,0.00027397,2]
[328483928,1717434445240,-630.693455,0.00027397,2]
[328483929,1717434445269,-630.693455,0.00027397,2]
[328483930,1717434445289,-630.693455,0.00027397,2]
[328483931,1717434445310,-151.0,0.00027397,2]
[328483932,1717434445331,-630.693455,0.00027397,2]
[328483933,1717434445353,-151.0,0.00027397,2]
[328483934,1717434445373,-630.693455,0.00027397,2]
[328483935,1717434445394,-151.0,0.00027397,2]
[328483936,1717434445415,-151.0,0.00027397,2]
[328483937,1717434445435,-151.0,0.00027397,2]
[328483938,1717434445456,-151.0,0.00027397,2]
[328483939,1717434445477,-151.0,0.00027397,2]
[328483940,1717434445498,-151.0,0.00027397,2]
[328483941,1717434445518,-151.0,0.00027397,2]
[328483942,1717434445540,-232.698744,0.00027397,2]
[328483943,1717434445561,-151.0,0.00027397,2]
[328483944,1717434445585,-151.0,0.00027397,2]
[328483945,1717434445607,-151.0,0.00027397,2]
[328483946,1717434445628,-151.0,0.00027397,2]
[328483947,1717434445649,-151.0,0.00027397,2]
[328483948,1717434445670,-151.0,0.00027397,2]
[328483949,1717434445692,-151.0,0.00027397,2]
[328483950,1717434445715,-151.0,0.00027397,2]
[328483951,1717434445737,-151.0,0.00027397,2]
[328483952,1717434445759,-151.0,0.00027397,2]
[328483953,1717434445781,-151.0,0.00027397,2]
[328483954,1717434445802,-151.0,0.00027397,2]
[328483955,1717434445825,-151.0,0.00027397,2]
[328483956,1717434445846,-151.0,0.00027397,2]
[328483957,1717434445866,-151.0,0.00027397,2]
[328483958,1717434445886,-151.0,0.00027397,2]
[328483959,1717434445905,-163.847406,0.00027397,2]
[328483960,1717434445926,-151.0,0.00027397,2]
[328483961,1717434445952,-151.0,0.00027397,2]
[328483962,1717434445972,-151.0,0.00027397,2]
[328483963,1717434445992,-151.0,0.00027397,2]
[328483964,1717434446013,-151.0,0.00027397,2]
[328483965,1717434446034,-151.0,0.00027397,2]
[328483966,1717434446054,-151.0,0.00027397,2]
[328483967,1717434446074,-151.0,0.00027397,2]
[328483968,1717434446095,-151.0,0.00027397,2]
[328483969,1717434446116,-151.0,0.00027397,2]
[328483970,1717434446137,-151.0,0.00027397,2]
[328483971,1717434446162,-172.560889,0.00027397,2]
[328483972,1717434446182,-151.0,0.00027397,2]
[328483973,1717434446206,-151.0,0.00027397,2]
[328483974,1717434446227,-151.0,0.00027397,2]
[328483975,1717434446248,-152.930701,0.00027397,2]
[328483976,1717434446269,-248.348473,0.00027397,2]
[328483977,1717434446289,-500.0,0.00027397,2]
[328483978,1717434446309,-151.0,0.00027397,2]
[328483979,1717434446329,-153.381844,0.00027397,2]
[328483980,1717434446350,-151.0,0.00027397,2]
[328483981,1717434446372,-151.0,0.00027397,2]
[328483982,1717434446397,-360.472577,0.00027397,2]
[328483983,1717434446418,-360.472577,0.00027397,2]
[328483984,1717434446439,-26.14612131,0.00027397,2]
[328483985,1717434447177,-258.75499797,0.00019998,2]
[328483986,1717434447198,-34.14144632,0.00027032,2]
[328483988,1717434469145,10000.0,0.00028,120]
[328483989,1717434478767,10000.0,0.00028,120]
[328483990,1717434490733,10000.0,0.00028,120]
[328483991,1717434503431,5488.0,0.00028,120]
[328483997,1717434546212,-462.59629197,0.0002,2]
[328484134,1717434638215,-166.666666,0.00026,2]
[328484136,1717434638228,-1894.666471,0.000268,2]
[328484138,1717434638238,-738.425056,0.00026849,2]
[328484140,1717434638247,-144.31226019,0.00027032,2]
[328484142,1717434638257,-178.45370651,0.00027097,2]
[328484144,1717434638267,-178.45370651,0.00027106,2]
[328484146,1717434638277,-178.45370651,0.00027183,2]
[328484148,1717434638287,-178.45370651,0.00027213,2]
[328484150,1717434638298,-178.45370651,0.00027235,2]
[328484152,1717434638307,-178.45370651,0.00027253,2]
[328484154,1717434638317,-406.23457498,0.00027297,2]
[328484156,1717434638327,-1000.0,0.000273,2]
[328484158,1717434638336,-91.03568294,0.0002731,2]
[328484160,1717434638349,-87.41802357,0.0002731,2]
[328484162,1717434638359,-178.45370651,0.00027321,2]
[328484164,1717434638369,-733.80578925,0.00027368,2]
[328484166,1717434638380,-3872.89627695,0.00027368,2]
[328484523,1717434641848,-2288.98111824,0.00027368,2]
[328484525,1717434641858,-153.0,0.0002737,2]
[328484527,1717434641868,-3327.5,0.00027387,3]
[328484529,1717434641877,-526.42,0.00027387,3]
[328484531,1717434641887,-6345.32,0.00027387,3]
[328484533,1717434641898,-3893.22115962,0.00027387,3]
[328484693,1717434643359,-469.20218924,0.00027387,3]
[328484732,1717434643711,-790.34523463,0.00027387,3]
[328485170,1717435601451,156.98418007,0.00015,2]
[328485171,1717435638144,-166.666666,0.00023,2]
[328485172,1717435640109,-0.333334,0.00023,2]
[328485173,1717435640129,-167.0,0.00023374,2]
[328485174,1717435640149,-47.67037403,0.00024127,2]
[328485175,1717435653120,-150.0,0.00021274,2]
[328485176,1717435653140,-163.90715033,0.00024127,2]
[328485181,1717435766114,-38.42247564,0.00024127,2]
[328485182,1717435766135,-549.67760005,0.00024127,2]
[328485186,1717435788790,255.44159031,0.00024127,2]
[328485217,1717435832318,-156.98418007,0.00024126,2]
[328485219,1717435832328,-30.94043932,0.00024127,2]
[328485221,1717435832337,-167.0,0.00024255,2]
[328485223,1717435832346,-2394.433897,0.00024684,2]
[328485225,1717435832355,-166.666666,0.00025068,2]
[328485227,1717435832365,-174.0,0.00025468,2]
[328485229,1717435832375,-24900.0,0.00025469,2]
[328485231,1717435832385,-189.99763459,0.000258,2]
[328485233,1717435832394,-923.85628515,0.000259,2]
[328485235,1717435832402,-166.666666,0.00026,2]
[328485237,1717435832411,-2499.40390694,0.00026045,2]
[328485652,1717435842432,-2047.82731329,0.00026045,2]
[328485653,1717435842445,-13654.96596348,0.00026045,2]
[328485654,1717435842455,-154.56985954,0.000264,2]
[328485655,1717435842464,-150.0,0.000265,2]
[328485656,1717435842474,-153.0,0.00026548,2]
[328485657,1717435842484,-153.0,0.00026548,2]
[328485658,1717435842494,-583.9417269,0.00026639,2]
[328485659,1717435842504,-750.0,0.00026849,2]
[328485660,1717435842514,-188.65,0.000269,3]
[328485661,1717435842524,-188.65,0.000269,3]
[328485662,1717435842534,-188.65,0.000269,3]
[328485663,1717435842544,-188.65,0.000269,3]
[328485664,1717435842554,-188.65,0.000269,3]
[328485665,1717435842564,-188.65,0.000269,3]
[328485666,1717435842574,-188.65,0.000269,3]
[328485667,1717435842584,-188.65,0.000269,3]
[328485668,1717435842593,-188.65,0.000269,3]
[328485669,1717435842603,-188.65,0.000269,3]
[328485670,1717435842617,-188.65,0.000269,3]
[328485671,1717435842627,-188.65,0.000269,3]
[328485672,1717435842637,-188.65,0.000269,3]
[328485673,1717435842646,-188.65,0.000269,3]
[328485674,1717435842657,-188.65,0.000269,3]
[328485675,1717435842666,-188.65,0.000269,3]
[328485676,1717435842676,-188.65,0.000269,3]
[328485677,1717435842687,-188.65,0.000269,3]
[328485678,1717435842696,-188.65,0.000269,3]
[328485679,1717435842705,-188.65,0.000269,3]
[328485680,1717435842715,-155.37085402,0.00026991,2]
[328485681,1717435842724,-155.37085402,0.00027076,2]
[328485682,1717435842733,-167.0,0.00027166,2]
[328485683,1717435842743,-155.37085402,0.00027192,2]
[328485684,1717435842753,-155.37085402,0.00027236,2]
[328485685,1717435842763,-319.0,0.000273,2]
[328485686,1717435842773,-155.37085402,0.00027313,2]
[328485687,1717435842783,-162.12618878,0.00027314,2]
[328485688,1717435842793,-162.12618878,0.00027324,2]
[328485689,1717435842803,-155.37085402,0.0002733,2]
[328485690,1717435842812,-155.37085402,0.00027331,2]
[328485691,1717435842822,-153.0,0.0002737,2]
[328485692,1717435842831,-153.0,0.0002737,2]